{"text_format":"3","workbook":"xlsx","n_sheets":2,"sheets":["Мониторинг сброса веса","расчеты"],"not_rendered":{"charts":1,"defined_names":7},"read":"whole","date_system":"1900"}

{"sheet":"Мониторинг сброса веса","index":0,"n_rows":129,"n_cols":11,"rows_kept":129,"merged":[[0,5,0,9],[1,4,3,9]]}
[null,"ЦЕЛЕВОЙ ВЕС","ПРЕДСТАВЛЕНИЕ ДИАГРАММЫ",null,null," ДАРЬЯ: ПОТЕРЯ ВЕСА"]
[{"$nulls":4},"МОНИТОРИНГ"]
[null,{"v":172,"d":"172.0"},"ЗА НЕДЕЛЮ",{"$nulls":7}," "]
[]
[]
[{"$nulls":10}," "]
{"$rows_empty":18}
[null,"ДАТА","ВЕС"]
[null,"2012-11-30",{"v":176,"d":"176.0"}]
[null,"2012-12-07",{"v":176,"d":"176.0"}]
[null,"2012-12-14",177.6]
[null,"2012-12-21",176.5]
[null,"2012-12-28",176.1]
[null,"2013-01-04",{"v":174,"d":"174.0"}]
[null,"2013-01-11",{"v":173,"d":"173.0"}]
[null,"2013-01-18",{"v":172,"d":"172.0"}]
[null,"2013-01-25",{"v":172,"d":"172.0"}]
[null,"2013-02-01",{"v":173,"d":"173.0"}]
[null,"2013-02-08",{"v":174,"d":"174.0"}]
[null,"2013-02-15",{"v":175,"d":"175.0"}]
[null,"2013-02-22"]
[null,"2013-03-01"]
[null,"2013-03-08"]
[null,"2013-03-15"]
[null,"2013-03-22"]
[null,"2013-03-29"]
[null,"2013-04-05"]
[null,"2013-04-12"]
[null,"2013-04-19"]
[null,"2013-04-26"]
[null,"2013-05-03"]
[null,"2013-05-10"]
[null,"2013-05-17"]
[null,"2013-05-24"]
[null,"2013-05-31"]
[null,"2013-06-07"]
[null,"2013-06-14"]
[null,"2013-06-21"]
[null,"2013-06-28"]
[null,"2013-07-05"]
[null,"2013-07-12"]
[null,"2013-07-19"]
[null,"2013-07-26"]
[null,"2013-08-02"]
[null,"2013-08-09"]
[null,"2013-08-16"]
[null,"2013-08-23"]
[null,"2013-08-30"]
[null,"2013-09-06"]
[null,"2013-09-13"]
[null,"2013-09-20"]
[null,"2013-09-27"]
[null,"2013-10-04"]
[null,"2013-10-11"]
[null,"2013-10-18"]
[null,"2013-10-25"]
[null,"2013-11-01"]
[null,"2013-11-08"]
[null,"2013-11-15"]
[null,"2013-11-22"]
[null,"2013-11-29"]
[null,"2013-12-06"]
[null,"2013-12-13"]
[null,"2013-12-20"]
[null,"2013-12-27"]
[null,"2014-01-03"]
[null,"2014-01-10"]
[null,"2014-01-17"]
[null,"2014-01-24"]
[null,"2014-01-31"]
[null,"2014-02-07"]
[null,"2014-02-14"]
[null,"2014-02-21"]
[null,"2014-02-28"]
[null,"2014-03-07"]
[null,"2014-03-14"]
[null,"2014-03-21"]
[null,"2014-03-28"]
[null,"2014-04-04"]
[null,"2014-04-11"]
[null,"2014-04-18"]
[null,"2014-04-25"]
[null,"2014-05-02"]
[null,"2014-05-09"]
[null,"2014-05-16"]
[null,"2014-05-23"]
[null,"2014-05-30"]
[null,"2014-06-06"]
[null,"2014-06-13"]
[null,"2014-06-20"]
[null,"2014-06-27"]
[null,"2014-07-04"]
[null,"2014-07-11"]
[null,"2014-07-18"]
[null,"2014-07-25"]
[null,"2014-08-01"]
[null,"2014-08-08"]
[null,"2014-08-15"]
[null,"2014-08-22"]
[null,"2014-08-29"]
[null,"2014-09-05"]
[null,"2014-09-12"]
[null,"2014-09-19"]
[null,"2014-09-26"]
[null,"2014-10-03"]
[null,"2014-10-10"]
[null,"2014-10-17"]
[null,"2014-10-24"]
[null,"2014-10-31"]
[null,"2014-11-07"]
[null,"2014-11-14"]
[null,"2014-11-21"]

{"sheet":"расчеты","index":1,"n_rows":108,"n_cols":17,"rows_kept":108,"hidden":true}
["*** Этот лист должен оставаться скрытым ***"]
[]
[{"$f":"COUNTIF(A5:A108,FALSE)","v":13},"Периоды","Значения",{"$nulls":3},{"$f":"COUNTIF(H5:H28,\">\"&0)","v":4},"Периоды",null,"Значения"]
[null,"Неделя",null,null,true,null,null,"Месяц","Конец месяца"]
[{"$f":"IF(('Мониторинг сброса веса'!C26=0)*('Мониторинг сброса веса'!C25=0),TRUE)","v":false},{"$f":"IF(A5,0,IF('Мониторинг сброса веса'!B26=0,'Мониторинг сброса веса'!B25+5,'Мониторинг сброса веса'!B26))","v":"2012-11-30"},{"$f":"'Мониторинг сброса веса'!C26","v":176},{"$f":"MIN(ПериодыНаДиаграмме)","v":"2012-11-30"},{"$f":"IF($E$4,ЦелевойВес,NA())","v":172},null,null,{"$f":"DATE(YEAR(B5),MONTH(B5),1)","v":"2012-11-01"},{"$f":"EOMONTH(H5,0)","v":"2012-11-30"},{"$f":"IFERROR(AVERAGEIFS(ТаблицаЗначенийВеса[ВЕС],ТаблицаЗначенийВеса[ДАТА],\">=\"&H5,ТаблицаЗначенийВеса[ДАТА],\"<=\"&I5),NA())","v":176}]
[{"$f":"IF(('Мониторинг сброса веса'!C27=0)*('Мониторинг сброса веса'!C26=0),TRUE)","v":false},{"$f":"IF(A6,0,IF('Мониторинг сброса веса'!B27=0,'Мониторинг сброса веса'!B26+5,'Мониторинг сброса веса'!B27))","v":"2012-12-07"},{"$f":"'Мониторинг сброса веса'!C27","v":176},{"$f":"MAX(ПериодыНаДиаграмме)","v":"2013-02-22"},172,null,null,{"$f":"IF(I5+1>MAX($B:$B),NA(),I5+1)","v":"2012-12-01"},"2012-12-31",{"$f":"IFERROR(AVERAGEIFS(ТаблицаЗначенийВеса[ВЕС],ТаблицаЗначенийВеса[ДАТА],\">=\"&H6,ТаблицаЗначенийВеса[ДАТА],\"<=\"&I6),NA())","v":176.55}]
[{"$f":"IF(('Мониторинг сброса веса'!C28=0)*('Мониторинг сброса веса'!C27=0),TRUE)","v":false},{"$f":"IF(A7,0,IF('Мониторинг сброса веса'!B28=0,'Мониторинг сброса веса'!B27+5,'Мониторинг сброса веса'!B28))","v":"2012-12-14"},{"$f":"'Мониторинг сброса веса'!C28","v":177.6},{"$nulls":4},{"$f":"IF(I6+1>MAX($B:$B),NA(),I6+1)","v":"2013-01-01"},"2013-01-31",{"$f":"IFERROR(AVERAGEIFS(ТаблицаЗначенийВеса[ВЕС],ТаблицаЗначенийВеса[ДАТА],\">=\"&H7,ТаблицаЗначенийВеса[ДАТА],\"<=\"&I7),NA())","v":172.75}]
[{"$f":"IF(('Мониторинг сброса веса'!C29=0)*('Мониторинг сброса веса'!C28=0),TRUE)","v":false},{"$f":"IF(A8,0,IF('Мониторинг сброса веса'!B29=0,'Мониторинг сброса веса'!B28+5,'Мониторинг сброса веса'!B29))","v":"2012-12-21"},{"$f":"'Мониторинг сброса веса'!C29","v":176.5},{"$nulls":4},"2013-02-01","2013-02-28",{"$f":"IFERROR(AVERAGEIFS(ТаблицаЗначенийВеса[ВЕС],ТаблицаЗначенийВеса[ДАТА],\">=\"&H8,ТаблицаЗначенийВеса[ДАТА],\"<=\"&I8),NA())","v":174}]
[{"$f":"IF(('Мониторинг сброса веса'!C30=0)*('Мониторинг сброса веса'!C29=0),TRUE)","v":false},{"$f":"IF(A9,0,IF('Мониторинг сброса веса'!B30=0,'Мониторинг сброса веса'!B29+5,'Мониторинг сброса веса'!B30))","v":"2012-12-28"},{"$f":"'Мониторинг сброса веса'!C30","v":176.1},{"$nulls":4},{"$error":"#N/A"},{"$error":"#N/A"},{"$f":"IFERROR(AVERAGEIFS(ТаблицаЗначенийВеса[ВЕС],ТаблицаЗначенийВеса[ДАТА],\">=\"&H9,ТаблицаЗначенийВеса[ДАТА],\"<=\"&I9),NA())","v":{"$error":"#N/A"}}]
[{"$f":"IF(('Мониторинг сброса веса'!C31=0)*('Мониторинг сброса веса'!C30=0),TRUE)","v":false},{"$f":"IF(A10,0,IF('Мониторинг сброса веса'!B31=0,'Мониторинг сброса веса'!B30+5,'Мониторинг сброса веса'!B31))","v":"2013-01-04"},{"$f":"'Мониторинг сброса веса'!C31","v":174},{"$nulls":4},{"$error":"#N/A"},{"$error":"#N/A"},{"$f":"IFERROR(AVERAGEIFS(ТаблицаЗначенийВеса[ВЕС],ТаблицаЗначенийВеса[ДАТА],\">=\"&H10,ТаблицаЗначенийВеса[ДАТА],\"<=\"&I10),NA())","v":{"$error":"#N/A"}}]
[{"$f":"IF(('Мониторинг сброса веса'!C32=0)*('Мониторинг сброса веса'!C31=0),TRUE)","v":false},{"$f":"IF(A11,0,IF('Мониторинг сброса веса'!B32=0,'Мониторинг сброса веса'!B31+5,'Мониторинг сброса веса'!B32))","v":"2013-01-11"},{"$f":"'Мониторинг сброса веса'!C32","v":173},{"$nulls":4},{"$error":"#N/A"},{"$error":"#N/A"},{"$f":"IFERROR(AVERAGEIFS(ТаблицаЗначенийВеса[ВЕС],ТаблицаЗначенийВеса[ДАТА],\">=\"&H11,ТаблицаЗначенийВеса[ДАТА],\"<=\"&I11),NA())","v":{"$error":"#N/A"}},{"$nulls":6},{"$f":"MAX($B:$B)","v":"2013-02-22"}]
[{"$f":"IF(('Мониторинг сброса веса'!C33=0)*('Мониторинг сброса веса'!C32=0),TRUE)","v":false},{"$f":"IF(A12,0,IF('Мониторинг сброса веса'!B33=0,'Мониторинг сброса веса'!B32+5,'Мониторинг сброса веса'!B33))","v":"2013-01-18"},{"$f":"'Мониторинг сброса веса'!C33","v":172},{"$nulls":4},{"$error":"#N/A"},{"$error":"#N/A"},{"$f":"IFERROR(AVERAGEIFS(ТаблицаЗначенийВеса[ВЕС],ТаблицаЗначенийВеса[ДАТА],\">=\"&H12,ТаблицаЗначенийВеса[ДАТА],\"<=\"&I12),NA())","v":{"$error":"#N/A"}}]
[{"$f":"IF(('Мониторинг сброса веса'!C34=0)*('Мониторинг сброса веса'!C33=0),TRUE)","v":false},{"$f":"IF(A13,0,IF('Мониторинг сброса веса'!B34=0,'Мониторинг сброса веса'!B33+5,'Мониторинг сброса веса'!B34))","v":"2013-01-25"},{"$f":"'Мониторинг сброса веса'!C34","v":172},{"$nulls":4},{"$error":"#N/A"},{"$error":"#N/A"},{"$f":"IFERROR(AVERAGEIFS(ТаблицаЗначенийВеса[ВЕС],ТаблицаЗначенийВеса[ДАТА],\">=\"&H13,ТаблицаЗначенийВеса[ДАТА],\"<=\"&I13),NA())","v":{"$error":"#N/A"}}]
[{"$f":"IF(('Мониторинг сброса веса'!C35=0)*('Мониторинг сброса веса'!C34=0),TRUE)","v":false},{"$f":"IF(A14,0,IF('Мониторинг сброса веса'!B35=0,'Мониторинг сброса веса'!B34+5,'Мониторинг сброса веса'!B35))","v":"2013-02-01"},{"$f":"'Мониторинг сброса веса'!C35","v":173},{"$nulls":4},{"$error":"#N/A"},{"$error":"#N/A"},{"$f":"IFERROR(AVERAGEIFS(ТаблицаЗначенийВеса[ВЕС],ТаблицаЗначенийВеса[ДАТА],\">=\"&H14,ТаблицаЗначенийВеса[ДАТА],\"<=\"&I14),NA())","v":{"$error":"#N/A"}}]
[{"$f":"IF(('Мониторинг сброса веса'!C36=0)*('Мониторинг сброса веса'!C35=0),TRUE)","v":false},{"$f":"IF(A15,0,IF('Мониторинг сброса веса'!B36=0,'Мониторинг сброса веса'!B35+5,'Мониторинг сброса веса'!B36))","v":"2013-02-08"},{"$f":"'Мониторинг сброса веса'!C36","v":174},{"$nulls":4},{"$error":"#N/A"},{"$error":"#N/A"},{"$f":"IFERROR(AVERAGEIFS(ТаблицаЗначенийВеса[ВЕС],ТаблицаЗначенийВеса[ДАТА],\">=\"&H15,ТаблицаЗначенийВеса[ДАТА],\"<=\"&I15),NA())","v":{"$error":"#N/A"}}]
[{"$f":"IF(('Мониторинг сброса веса'!C37=0)*('Мониторинг сброса веса'!C36=0),TRUE)","v":false},{"$f":"IF(A16,0,IF('Мониторинг сброса веса'!B37=0,'Мониторинг сброса веса'!B36+5,'Мониторинг сброса веса'!B37))","v":"2013-02-15"},{"$f":"'Мониторинг сброса веса'!C37","v":175},{"$nulls":4},{"$error":"#N/A"},{"$error":"#N/A"},{"$f":"IFERROR(AVERAGEIFS(ТаблицаЗначенийВеса[ВЕС],ТаблицаЗначенийВеса[ДАТА],\">=\"&H16,ТаблицаЗначенийВеса[ДАТА],\"<=\"&I16),NA())","v":{"$error":"#N/A"}}]
[{"$f":"IF(('Мониторинг сброса веса'!C38=0)*('Мониторинг сброса веса'!C37=0),TRUE)","v":false},{"$f":"IF(A17,0,IF('Мониторинг сброса веса'!B38=0,'Мониторинг сброса веса'!B37+5,'Мониторинг сброса веса'!B38))","v":"2013-02-22"},{"$f":"'Мониторинг сброса веса'!C38","v":0},{"$nulls":4},{"$error":"#N/A"},{"$error":"#N/A"},{"$f":"IFERROR(AVERAGEIFS(ТаблицаЗначенийВеса[ВЕС],ТаблицаЗначенийВеса[ДАТА],\">=\"&H17,ТаблицаЗначенийВеса[ДАТА],\"<=\"&I17),NA())","v":{"$error":"#N/A"}}]
[{"$f":"IF(('Мониторинг сброса веса'!C39=0)*('Мониторинг сброса веса'!C38=0),TRUE)","v":true},{"$f":"IF(A18,0,IF('Мониторинг сброса веса'!B39=0,'Мониторинг сброса веса'!B38+5,'Мониторинг сброса веса'!B39))","v":"00:00:00"},{"$f":"'Мониторинг сброса веса'!C39","v":0},{"$nulls":4},{"$error":"#N/A"},{"$error":"#N/A"},{"$f":"IFERROR(AVERAGEIFS(ТаблицаЗначенийВеса[ВЕС],ТаблицаЗначенийВеса[ДАТА],\">=\"&H18,ТаблицаЗначенийВеса[ДАТА],\"<=\"&I18),NA())","v":{"$error":"#N/A"}}]
[{"$f":"IF(('Мониторинг сброса веса'!C40=0)*('Мониторинг сброса веса'!C39=0),TRUE)","v":true},{"$f":"IF(A19,0,IF('Мониторинг сброса веса'!B40=0,'Мониторинг сброса веса'!B39+5,'Мониторинг сброса веса'!B40))","v":"00:00:00"},{"$f":"'Мониторинг сброса веса'!C40","v":0},{"$nulls":4},{"$error":"#N/A"},{"$error":"#N/A"},{"$f":"IFERROR(AVERAGEIFS(ТаблицаЗначенийВеса[ВЕС],ТаблицаЗначенийВеса[ДАТА],\">=\"&H19,ТаблицаЗначенийВеса[ДАТА],\"<=\"&I19),NA())","v":{"$error":"#N/A"}}]
[{"$f":"IF(('Мониторинг сброса веса'!C41=0)*('Мониторинг сброса веса'!C40=0),TRUE)","v":true},{"$f":"IF(A20,0,IF('Мониторинг сброса веса'!B41=0,'Мониторинг сброса веса'!B40+5,'Мониторинг сброса веса'!B41))","v":"00:00:00"},{"$f":"'Мониторинг сброса веса'!C41","v":0},{"$nulls":4},{"$error":"#N/A"},{"$error":"#N/A"},{"$f":"IFERROR(AVERAGEIFS(ТаблицаЗначенийВеса[ВЕС],ТаблицаЗначенийВеса[ДАТА],\">=\"&H20,ТаблицаЗначенийВеса[ДАТА],\"<=\"&I20),NA())","v":{"$error":"#N/A"}}]
[{"$f":"IF(('Мониторинг сброса веса'!C42=0)*('Мониторинг сброса веса'!C41=0),TRUE)","v":true},{"$f":"IF(A21,0,IF('Мониторинг сброса веса'!B42=0,'Мониторинг сброса веса'!B41+5,'Мониторинг сброса веса'!B42))","v":"00:00:00"},{"$f":"'Мониторинг сброса веса'!C42","v":0},{"$nulls":4},{"$error":"#N/A"},{"$error":"#N/A"},{"$f":"IFERROR(AVERAGEIFS(ТаблицаЗначенийВеса[ВЕС],ТаблицаЗначенийВеса[ДАТА],\">=\"&H21,ТаблицаЗначенийВеса[ДАТА],\"<=\"&I21),NA())","v":{"$error":"#N/A"}}]
[{"$f":"IF(('Мониторинг сброса веса'!C43=0)*('Мониторинг сброса веса'!C42=0),TRUE)","v":true},{"$f":"IF(A22,0,IF('Мониторинг сброса веса'!B43=0,'Мониторинг сброса веса'!B42+5,'Мониторинг сброса веса'!B43))","v":"00:00:00"},{"$f":"'Мониторинг сброса веса'!C43","v":0},{"$nulls":4},{"$error":"#N/A"},{"$error":"#N/A"},{"$f":"IFERROR(AVERAGEIFS(ТаблицаЗначенийВеса[ВЕС],ТаблицаЗначенийВеса[ДАТА],\">=\"&H22,ТаблицаЗначенийВеса[ДАТА],\"<=\"&I22),NA())","v":{"$error":"#N/A"}}]
[{"$f":"IF(('Мониторинг сброса веса'!C44=0)*('Мониторинг сброса веса'!C43=0),TRUE)","v":true},{"$f":"IF(A23,0,IF('Мониторинг сброса веса'!B44=0,'Мониторинг сброса веса'!B43+5,'Мониторинг сброса веса'!B44))","v":"00:00:00"},{"$f":"'Мониторинг сброса веса'!C44","v":0},{"$nulls":4},{"$error":"#N/A"},{"$error":"#N/A"},{"$f":"IFERROR(AVERAGEIFS(ТаблицаЗначенийВеса[ВЕС],ТаблицаЗначенийВеса[ДАТА],\">=\"&H23,ТаблицаЗначенийВеса[ДАТА],\"<=\"&I23),NA())","v":{"$error":"#N/A"}}]
[{"$f":"IF(('Мониторинг сброса веса'!C45=0)*('Мониторинг сброса веса'!C44=0),TRUE)","v":true},{"$f":"IF(A24,0,IF('Мониторинг сброса веса'!B45=0,'Мониторинг сброса веса'!B44+5,'Мониторинг сброса веса'!B45))","v":"00:00:00"},{"$f":"'Мониторинг сброса веса'!C45","v":0},{"$nulls":4},{"$error":"#N/A"},{"$error":"#N/A"},{"$f":"IFERROR(AVERAGEIFS(ТаблицаЗначенийВеса[ВЕС],ТаблицаЗначенийВеса[ДАТА],\">=\"&H24,ТаблицаЗначенийВеса[ДАТА],\"<=\"&I24),NA())","v":{"$error":"#N/A"}}]
[{"$f":"IF(('Мониторинг сброса веса'!C46=0)*('Мониторинг сброса веса'!C45=0),TRUE)","v":true},{"$f":"IF(A25,0,IF('Мониторинг сброса веса'!B46=0,'Мониторинг сброса веса'!B45+5,'Мониторинг сброса веса'!B46))","v":"00:00:00"},{"$f":"'Мониторинг сброса веса'!C46","v":0},{"$nulls":4},{"$error":"#N/A"},{"$error":"#N/A"},{"$f":"IFERROR(AVERAGEIFS(ТаблицаЗначенийВеса[ВЕС],ТаблицаЗначенийВеса[ДАТА],\">=\"&H25,ТаблицаЗначенийВеса[ДАТА],\"<=\"&I25),NA())","v":{"$error":"#N/A"}}]
[{"$f":"IF(('Мониторинг сброса веса'!C47=0)*('Мониторинг сброса веса'!C46=0),TRUE)","v":true},{"$f":"IF(A26,0,IF('Мониторинг сброса веса'!B47=0,'Мониторинг сброса веса'!B46+5,'Мониторинг сброса веса'!B47))","v":"00:00:00"},{"$f":"'Мониторинг сброса веса'!C47","v":0},{"$nulls":4},{"$error":"#N/A"},{"$error":"#N/A"},{"$f":"IFERROR(AVERAGEIFS(ТаблицаЗначенийВеса[ВЕС],ТаблицаЗначенийВеса[ДАТА],\">=\"&H26,ТаблицаЗначенийВеса[ДАТА],\"<=\"&I26),NA())","v":{"$error":"#N/A"}}]
[{"$f":"IF(('Мониторинг сброса веса'!C48=0)*('Мониторинг сброса веса'!C47=0),TRUE)","v":true},{"$f":"IF(A27,0,IF('Мониторинг сброса веса'!B48=0,'Мониторинг сброса веса'!B47+5,'Мониторинг сброса веса'!B48))","v":"00:00:00"},{"$f":"'Мониторинг сброса веса'!C48","v":0},{"$nulls":4},{"$error":"#N/A"},{"$error":"#N/A"},{"$f":"IFERROR(AVERAGEIFS(ТаблицаЗначенийВеса[ВЕС],ТаблицаЗначенийВеса[ДАТА],\">=\"&H27,ТаблицаЗначенийВеса[ДАТА],\"<=\"&I27),NA())","v":{"$error":"#N/A"}}]
[{"$f":"IF(('Мониторинг сброса веса'!C49=0)*('Мониторинг сброса веса'!C48=0),TRUE)","v":true},{"$f":"IF(A28,0,IF('Мониторинг сброса веса'!B49=0,'Мониторинг сброса веса'!B48+5,'Мониторинг сброса веса'!B49))","v":"00:00:00"},{"$f":"'Мониторинг сброса веса'!C49","v":0},{"$nulls":4},{"$error":"#N/A"},{"$error":"#N/A"},{"$f":"IFERROR(AVERAGEIFS(ТаблицаЗначенийВеса[ВЕС],ТаблицаЗначенийВеса[ДАТА],\">=\"&H28,ТаблицаЗначенийВеса[ДАТА],\"<=\"&I28),NA())","v":{"$error":"#N/A"}}]
[{"$f":"IF(('Мониторинг сброса веса'!C50=0)*('Мониторинг сброса веса'!C49=0),TRUE)","v":true},{"$f":"IF(A29,0,IF('Мониторинг сброса веса'!B50=0,'Мониторинг сброса веса'!B49+5,'Мониторинг сброса веса'!B50))","v":"00:00:00"},{"$f":"'Мониторинг сброса веса'!C50","v":0}]
[{"$f":"IF(('Мониторинг сброса веса'!C51=0)*('Мониторинг сброса веса'!C50=0),TRUE)","v":true},{"$f":"IF(A30,0,IF('Мониторинг сброса веса'!B51=0,'Мониторинг сброса веса'!B50+5,'Мониторинг сброса веса'!B51))","v":"00:00:00"},{"$f":"'Мониторинг сброса веса'!C51","v":0}]
[{"$f":"IF(('Мониторинг сброса веса'!C52=0)*('Мониторинг сброса веса'!C51=0),TRUE)","v":true},{"$f":"IF(A31,0,IF('Мониторинг сброса веса'!B52=0,'Мониторинг сброса веса'!B51+5,'Мониторинг сброса веса'!B52))","v":"00:00:00"},{"$f":"'Мониторинг сброса веса'!C52","v":0}]
[{"$f":"IF(('Мониторинг сброса веса'!C53=0)*('Мониторинг сброса веса'!C52=0),TRUE)","v":true},{"$f":"IF(A32,0,IF('Мониторинг сброса веса'!B53=0,'Мониторинг сброса веса'!B52+5,'Мониторинг сброса веса'!B53))","v":"00:00:00"},{"$f":"'Мониторинг сброса веса'!C53","v":0}]
[{"$f":"IF(('Мониторинг сброса веса'!C54=0)*('Мониторинг сброса веса'!C53=0),TRUE)","v":true},{"$f":"IF(A33,0,IF('Мониторинг сброса веса'!B54=0,'Мониторинг сброса веса'!B53+5,'Мониторинг сброса веса'!B54))","v":"00:00:00"},{"$f":"'Мониторинг сброса веса'!C54","v":0}]
[{"$f":"IF(('Мониторинг сброса веса'!C55=0)*('Мониторинг сброса веса'!C54=0),TRUE)","v":true},{"$f":"IF(A34,0,IF('Мониторинг сброса веса'!B55=0,'Мониторинг сброса веса'!B54+5,'Мониторинг сброса веса'!B55))","v":"00:00:00"},{"$f":"'Мониторинг сброса веса'!C55","v":0}]
[{"$f":"IF(('Мониторинг сброса веса'!C56=0)*('Мониторинг сброса веса'!C55=0),TRUE)","v":true},{"$f":"IF(A35,0,IF('Мониторинг сброса веса'!B56=0,'Мониторинг сброса веса'!B55+5,'Мониторинг сброса веса'!B56))","v":"00:00:00"},{"$f":"'Мониторинг сброса веса'!C56","v":0}]
[{"$f":"IF(('Мониторинг сброса веса'!C57=0)*('Мониторинг сброса веса'!C56=0),TRUE)","v":true},{"$f":"IF(A36,0,IF('Мониторинг сброса веса'!B57=0,'Мониторинг сброса веса'!B56+5,'Мониторинг сброса веса'!B57))","v":"00:00:00"},{"$f":"'Мониторинг сброса веса'!C57","v":0}]
[{"$f":"IF(('Мониторинг сброса веса'!C58=0)*('Мониторинг сброса веса'!C57=0),TRUE)","v":true},{"$f":"IF(A37,0,IF('Мониторинг сброса веса'!B58=0,'Мониторинг сброса веса'!B57+5,'Мониторинг сброса веса'!B58))","v":"00:00:00"},{"$f":"'Мониторинг сброса веса'!C58","v":0}]
[{"$f":"IF(('Мониторинг сброса веса'!C59=0)*('Мониторинг сброса веса'!C58=0),TRUE)","v":true},{"$f":"IF(A38,0,IF('Мониторинг сброса веса'!B59=0,'Мониторинг сброса веса'!B58+5,'Мониторинг сброса веса'!B59))","v":"00:00:00"},{"$f":"'Мониторинг сброса веса'!C59","v":0}]
[{"$f":"IF(('Мониторинг сброса веса'!C60=0)*('Мониторинг сброса веса'!C59=0),TRUE)","v":true},{"$f":"IF(A39,0,IF('Мониторинг сброса веса'!B60=0,'Мониторинг сброса веса'!B59+5,'Мониторинг сброса веса'!B60))","v":"00:00:00"},{"$f":"'Мониторинг сброса веса'!C60","v":0}]
[{"$f":"IF(('Мониторинг сброса веса'!C61=0)*('Мониторинг сброса веса'!C60=0),TRUE)","v":true},{"$f":"IF(A40,0,IF('Мониторинг сброса веса'!B61=0,'Мониторинг сброса веса'!B60+5,'Мониторинг сброса веса'!B61))","v":"00:00:00"},{"$f":"'Мониторинг сброса веса'!C61","v":0}]
[{"$f":"IF(('Мониторинг сброса веса'!C62=0)*('Мониторинг сброса веса'!C61=0),TRUE)","v":true},{"$f":"IF(A41,0,IF('Мониторинг сброса веса'!B62=0,'Мониторинг сброса веса'!B61+5,'Мониторинг сброса веса'!B62))","v":"00:00:00"},{"$f":"'Мониторинг сброса веса'!C62","v":0}]
[{"$f":"IF(('Мониторинг сброса веса'!C63=0)*('Мониторинг сброса веса'!C62=0),TRUE)","v":true},{"$f":"IF(A42,0,IF('Мониторинг сброса веса'!B63=0,'Мониторинг сброса веса'!B62+5,'Мониторинг сброса веса'!B63))","v":"00:00:00"},{"$f":"'Мониторинг сброса веса'!C63","v":0}]
[{"$f":"IF(('Мониторинг сброса веса'!C64=0)*('Мониторинг сброса веса'!C63=0),TRUE)","v":true},{"$f":"IF(A43,0,IF('Мониторинг сброса веса'!B64=0,'Мониторинг сброса веса'!B63+5,'Мониторинг сброса веса'!B64))","v":"00:00:00"},{"$f":"'Мониторинг сброса веса'!C64","v":0}]
[{"$f":"IF(('Мониторинг сброса веса'!C65=0)*('Мониторинг сброса веса'!C64=0),TRUE)","v":true},{"$f":"IF(A44,0,IF('Мониторинг сброса веса'!B65=0,'Мониторинг сброса веса'!B64+5,'Мониторинг сброса веса'!B65))","v":"00:00:00"},{"$f":"'Мониторинг сброса веса'!C65","v":0}]
[{"$f":"IF(('Мониторинг сброса веса'!C66=0)*('Мониторинг сброса веса'!C65=0),TRUE)","v":true},{"$f":"IF(A45,0,IF('Мониторинг сброса веса'!B66=0,'Мониторинг сброса веса'!B65+5,'Мониторинг сброса веса'!B66))","v":"00:00:00"},{"$f":"'Мониторинг сброса веса'!C66","v":0}]
[{"$f":"IF(('Мониторинг сброса веса'!C67=0)*('Мониторинг сброса веса'!C66=0),TRUE)","v":true},{"$f":"IF(A46,0,IF('Мониторинг сброса веса'!B67=0,'Мониторинг сброса веса'!B66+5,'Мониторинг сброса веса'!B67))","v":"00:00:00"},{"$f":"'Мониторинг сброса веса'!C67","v":0}]
[{"$f":"IF(('Мониторинг сброса веса'!C68=0)*('Мониторинг сброса веса'!C67=0),TRUE)","v":true},{"$f":"IF(A47,0,IF('Мониторинг сброса веса'!B68=0,'Мониторинг сброса веса'!B67+5,'Мониторинг сброса веса'!B68))","v":"00:00:00"},{"$f":"'Мониторинг сброса веса'!C68","v":0}]
[{"$f":"IF(('Мониторинг сброса веса'!C69=0)*('Мониторинг сброса веса'!C68=0),TRUE)","v":true},{"$f":"IF(A48,0,IF('Мониторинг сброса веса'!B69=0,'Мониторинг сброса веса'!B68+5,'Мониторинг сброса веса'!B69))","v":"00:00:00"},{"$f":"'Мониторинг сброса веса'!C69","v":0}]
[{"$f":"IF(('Мониторинг сброса веса'!C70=0)*('Мониторинг сброса веса'!C69=0),TRUE)","v":true},{"$f":"IF(A49,0,IF('Мониторинг сброса веса'!B70=0,'Мониторинг сброса веса'!B69+5,'Мониторинг сброса веса'!B70))","v":"00:00:00"},{"$f":"'Мониторинг сброса веса'!C70","v":0}]
[{"$f":"IF(('Мониторинг сброса веса'!C71=0)*('Мониторинг сброса веса'!C70=0),TRUE)","v":true},{"$f":"IF(A50,0,IF('Мониторинг сброса веса'!B71=0,'Мониторинг сброса веса'!B70+5,'Мониторинг сброса веса'!B71))","v":"00:00:00"},{"$f":"'Мониторинг сброса веса'!C71","v":0}]
[{"$f":"IF(('Мониторинг сброса веса'!C72=0)*('Мониторинг сброса веса'!C71=0),TRUE)","v":true},{"$f":"IF(A51,0,IF('Мониторинг сброса веса'!B72=0,'Мониторинг сброса веса'!B71+5,'Мониторинг сброса веса'!B72))","v":"00:00:00"},{"$f":"'Мониторинг сброса веса'!C72","v":0}]
[{"$f":"IF(('Мониторинг сброса веса'!C73=0)*('Мониторинг сброса веса'!C72=0),TRUE)","v":true},{"$f":"IF(A52,0,IF('Мониторинг сброса веса'!B73=0,'Мониторинг сброса веса'!B72+5,'Мониторинг сброса веса'!B73))","v":"00:00:00"},{"$f":"'Мониторинг сброса веса'!C73","v":0}]
[{"$f":"IF(('Мониторинг сброса веса'!C74=0)*('Мониторинг сброса веса'!C73=0),TRUE)","v":true},{"$f":"IF(A53,0,IF('Мониторинг сброса веса'!B74=0,'Мониторинг сброса веса'!B73+5,'Мониторинг сброса веса'!B74))","v":"00:00:00"},{"$f":"'Мониторинг сброса веса'!C74","v":0}]
[{"$f":"IF(('Мониторинг сброса веса'!C75=0)*('Мониторинг сброса веса'!C74=0),TRUE)","v":true},{"$f":"IF(A54,0,IF('Мониторинг сброса веса'!B75=0,'Мониторинг сброса веса'!B74+5,'Мониторинг сброса веса'!B75))","v":"00:00:00"},{"$f":"'Мониторинг сброса веса'!C75","v":0}]
[{"$f":"IF(('Мониторинг сброса веса'!C76=0)*('Мониторинг сброса веса'!C75=0),TRUE)","v":true},{"$f":"IF(A55,0,IF('Мониторинг сброса веса'!B76=0,'Мониторинг сброса веса'!B75+5,'Мониторинг сброса веса'!B76))","v":"00:00:00"},{"$f":"'Мониторинг сброса веса'!C76","v":0}]
[{"$f":"IF(('Мониторинг сброса веса'!C77=0)*('Мониторинг сброса веса'!C76=0),TRUE)","v":true},{"$f":"IF(A56,0,IF('Мониторинг сброса веса'!B77=0,'Мониторинг сброса веса'!B76+5,'Мониторинг сброса веса'!B77))","v":"00:00:00"},{"$f":"'Мониторинг сброса веса'!C77","v":0}]
[{"$f":"IF(('Мониторинг сброса веса'!C78=0)*('Мониторинг сброса веса'!C77=0),TRUE)","v":true},{"$f":"IF(A57,0,IF('Мониторинг сброса веса'!B78=0,'Мониторинг сброса веса'!B77+5,'Мониторинг сброса веса'!B78))","v":"00:00:00"},{"$f":"'Мониторинг сброса веса'!C78","v":0}]
[{"$f":"IF(('Мониторинг сброса веса'!C79=0)*('Мониторинг сброса веса'!C78=0),TRUE)","v":true},{"$f":"IF(A58,0,IF('Мониторинг сброса веса'!B79=0,'Мониторинг сброса веса'!B78+5,'Мониторинг сброса веса'!B79))","v":"00:00:00"},{"$f":"'Мониторинг сброса веса'!C79","v":0}]
[{"$f":"IF(('Мониторинг сброса веса'!C80=0)*('Мониторинг сброса веса'!C79=0),TRUE)","v":true},{"$f":"IF(A59,0,IF('Мониторинг сброса веса'!B80=0,'Мониторинг сброса веса'!B79+5,'Мониторинг сброса веса'!B80))","v":"00:00:00"},{"$f":"'Мониторинг сброса веса'!C80","v":0}]
[{"$f":"IF(('Мониторинг сброса веса'!C81=0)*('Мониторинг сброса веса'!C80=0),TRUE)","v":true},{"$f":"IF(A60,0,IF('Мониторинг сброса веса'!B81=0,'Мониторинг сброса веса'!B80+5,'Мониторинг сброса веса'!B81))","v":"00:00:00"},{"$f":"'Мониторинг сброса веса'!C81","v":0}]
[{"$f":"IF(('Мониторинг сброса веса'!C82=0)*('Мониторинг сброса веса'!C81=0),TRUE)","v":true},{"$f":"IF(A61,0,IF('Мониторинг сброса веса'!B82=0,'Мониторинг сброса веса'!B81+5,'Мониторинг сброса веса'!B82))","v":"00:00:00"},{"$f":"'Мониторинг сброса веса'!C82","v":0}]
[{"$f":"IF(('Мониторинг сброса веса'!C83=0)*('Мониторинг сброса веса'!C82=0),TRUE)","v":true},{"$f":"IF(A62,0,IF('Мониторинг сброса веса'!B83=0,'Мониторинг сброса веса'!B82+5,'Мониторинг сброса веса'!B83))","v":"00:00:00"},{"$f":"'Мониторинг сброса веса'!C83","v":0}]
[{"$f":"IF(('Мониторинг сброса веса'!C84=0)*('Мониторинг сброса веса'!C83=0),TRUE)","v":true},{"$f":"IF(A63,0,IF('Мониторинг сброса веса'!B84=0,'Мониторинг сброса веса'!B83+5,'Мониторинг сброса веса'!B84))","v":"00:00:00"},{"$f":"'Мониторинг сброса веса'!C84","v":0}]
[{"$f":"IF(('Мониторинг сброса веса'!C85=0)*('Мониторинг сброса веса'!C84=0),TRUE)","v":true},{"$f":"IF(A64,0,IF('Мониторинг сброса веса'!B85=0,'Мониторинг сброса веса'!B84+5,'Мониторинг сброса веса'!B85))","v":"00:00:00"},{"$f":"'Мониторинг сброса веса'!C85","v":0}]
[{"$f":"IF(('Мониторинг сброса веса'!C86=0)*('Мониторинг сброса веса'!C85=0),TRUE)","v":true},{"$f":"IF(A65,0,IF('Мониторинг сброса веса'!B86=0,'Мониторинг сброса веса'!B85+5,'Мониторинг сброса веса'!B86))","v":"00:00:00"},{"$f":"'Мониторинг сброса веса'!C86","v":0}]
[{"$f":"IF(('Мониторинг сброса веса'!C87=0)*('Мониторинг сброса веса'!C86=0),TRUE)","v":true},{"$f":"IF(A66,0,IF('Мониторинг сброса веса'!B87=0,'Мониторинг сброса веса'!B86+5,'Мониторинг сброса веса'!B87))","v":"00:00:00"},{"$f":"'Мониторинг сброса веса'!C87","v":0}]
[{"$f":"IF(('Мониторинг сброса веса'!C88=0)*('Мониторинг сброса веса'!C87=0),TRUE)","v":true},{"$f":"IF(A67,0,IF('Мониторинг сброса веса'!B88=0,'Мониторинг сброса веса'!B87+5,'Мониторинг сброса веса'!B88))","v":"00:00:00"},{"$f":"'Мониторинг сброса веса'!C88","v":0}]
[{"$f":"IF(('Мониторинг сброса веса'!C89=0)*('Мониторинг сброса веса'!C88=0),TRUE)","v":true},{"$f":"IF(A68,0,IF('Мониторинг сброса веса'!B89=0,'Мониторинг сброса веса'!B88+5,'Мониторинг сброса веса'!B89))","v":"00:00:00"},{"$f":"'Мониторинг сброса веса'!C89","v":0}]
[{"$f":"IF(('Мониторинг сброса веса'!C90=0)*('Мониторинг сброса веса'!C89=0),TRUE)","v":true},{"$f":"IF(A69,0,IF('Мониторинг сброса веса'!B90=0,'Мониторинг сброса веса'!B89+5,'Мониторинг сброса веса'!B90))","v":"00:00:00"},{"$f":"'Мониторинг сброса веса'!C90","v":0}]
[{"$f":"IF(('Мониторинг сброса веса'!C91=0)*('Мониторинг сброса веса'!C90=0),TRUE)","v":true},{"$f":"IF(A70,0,IF('Мониторинг сброса веса'!B91=0,'Мониторинг сброса веса'!B90+5,'Мониторинг сброса веса'!B91))","v":"00:00:00"},{"$f":"'Мониторинг сброса веса'!C91","v":0}]
[{"$f":"IF(('Мониторинг сброса веса'!C92=0)*('Мониторинг сброса веса'!C91=0),TRUE)","v":true},{"$f":"IF(A71,0,IF('Мониторинг сброса веса'!B92=0,'Мониторинг сброса веса'!B91+5,'Мониторинг сброса веса'!B92))","v":"00:00:00"},{"$f":"'Мониторинг сброса веса'!C92","v":0}]
[{"$f":"IF(('Мониторинг сброса веса'!C93=0)*('Мониторинг сброса веса'!C92=0),TRUE)","v":true},{"$f":"IF(A72,0,IF('Мониторинг сброса веса'!B93=0,'Мониторинг сброса веса'!B92+5,'Мониторинг сброса веса'!B93))","v":"00:00:00"},{"$f":"'Мониторинг сброса веса'!C93","v":0}]
[{"$f":"IF(('Мониторинг сброса веса'!C94=0)*('Мониторинг сброса веса'!C93=0),TRUE)","v":true},{"$f":"IF(A73,0,IF('Мониторинг сброса веса'!B94=0,'Мониторинг сброса веса'!B93+5,'Мониторинг сброса веса'!B94))","v":"00:00:00"},{"$f":"'Мониторинг сброса веса'!C94","v":0}]
[{"$f":"IF(('Мониторинг сброса веса'!C95=0)*('Мониторинг сброса веса'!C94=0),TRUE)","v":true},{"$f":"IF(A74,0,IF('Мониторинг сброса веса'!B95=0,'Мониторинг сброса веса'!B94+5,'Мониторинг сброса веса'!B95))","v":"00:00:00"},{"$f":"'Мониторинг сброса веса'!C95","v":0}]
[{"$f":"IF(('Мониторинг сброса веса'!C96=0)*('Мониторинг сброса веса'!C95=0),TRUE)","v":true},{"$f":"IF(A75,0,IF('Мониторинг сброса веса'!B96=0,'Мониторинг сброса веса'!B95+5,'Мониторинг сброса веса'!B96))","v":"00:00:00"},{"$f":"'Мониторинг сброса веса'!C96","v":0}]
[{"$f":"IF(('Мониторинг сброса веса'!C97=0)*('Мониторинг сброса веса'!C96=0),TRUE)","v":true},{"$f":"IF(A76,0,IF('Мониторинг сброса веса'!B97=0,'Мониторинг сброса веса'!B96+5,'Мониторинг сброса веса'!B97))","v":"00:00:00"},{"$f":"'Мониторинг сброса веса'!C97","v":0}]
[{"$f":"IF(('Мониторинг сброса веса'!C98=0)*('Мониторинг сброса веса'!C97=0),TRUE)","v":true},{"$f":"IF(A77,0,IF('Мониторинг сброса веса'!B98=0,'Мониторинг сброса веса'!B97+5,'Мониторинг сброса веса'!B98))","v":"00:00:00"},{"$f":"'Мониторинг сброса веса'!C98","v":0}]
[{"$f":"IF(('Мониторинг сброса веса'!C99=0)*('Мониторинг сброса веса'!C98=0),TRUE)","v":true},{"$f":"IF(A78,0,IF('Мониторинг сброса веса'!B99=0,'Мониторинг сброса веса'!B98+5,'Мониторинг сброса веса'!B99))","v":"00:00:00"},{"$f":"'Мониторинг сброса веса'!C99","v":0}]
[{"$f":"IF(('Мониторинг сброса веса'!C100=0)*('Мониторинг сброса веса'!C99=0),TRUE)","v":true},{"$f":"IF(A79,0,IF('Мониторинг сброса веса'!B100=0,'Мониторинг сброса веса'!B99+5,'Мониторинг сброса веса'!B100))","v":"00:00:00"},{"$f":"'Мониторинг сброса веса'!C100","v":0}]
[{"$f":"IF(('Мониторинг сброса веса'!C101=0)*('Мониторинг сброса веса'!C100=0),TRUE)","v":true},{"$f":"IF(A80,0,IF('Мониторинг сброса веса'!B101=0,'Мониторинг сброса веса'!B100+5,'Мониторинг сброса веса'!B101))","v":"00:00:00"},{"$f":"'Мониторинг сброса веса'!C101","v":0}]
[{"$f":"IF(('Мониторинг сброса веса'!C102=0)*('Мониторинг сброса веса'!C101=0),TRUE)","v":true},{"$f":"IF(A81,0,IF('Мониторинг сброса веса'!B102=0,'Мониторинг сброса веса'!B101+5,'Мониторинг сброса веса'!B102))","v":"00:00:00"},{"$f":"'Мониторинг сброса веса'!C102","v":0}]
[{"$f":"IF(('Мониторинг сброса веса'!C103=0)*('Мониторинг сброса веса'!C102=0),TRUE)","v":true},{"$f":"IF(A82,0,IF('Мониторинг сброса веса'!B103=0,'Мониторинг сброса веса'!B102+5,'Мониторинг сброса веса'!B103))","v":"00:00:00"},{"$f":"'Мониторинг сброса веса'!C103","v":0}]
[{"$f":"IF(('Мониторинг сброса веса'!C104=0)*('Мониторинг сброса веса'!C103=0),TRUE)","v":true},{"$f":"IF(A83,0,IF('Мониторинг сброса веса'!B104=0,'Мониторинг сброса веса'!B103+5,'Мониторинг сброса веса'!B104))","v":"00:00:00"},{"$f":"'Мониторинг сброса веса'!C104","v":0}]
[{"$f":"IF(('Мониторинг сброса веса'!C105=0)*('Мониторинг сброса веса'!C104=0),TRUE)","v":true},{"$f":"IF(A84,0,IF('Мониторинг сброса веса'!B105=0,'Мониторинг сброса веса'!B104+5,'Мониторинг сброса веса'!B105))","v":"00:00:00"},{"$f":"'Мониторинг сброса веса'!C105","v":0}]
[{"$f":"IF(('Мониторинг сброса веса'!C106=0)*('Мониторинг сброса веса'!C105=0),TRUE)","v":true},{"$f":"IF(A85,0,IF('Мониторинг сброса веса'!B106=0,'Мониторинг сброса веса'!B105+5,'Мониторинг сброса веса'!B106))","v":"00:00:00"},{"$f":"'Мониторинг сброса веса'!C106","v":0}]
[{"$f":"IF(('Мониторинг сброса веса'!C107=0)*('Мониторинг сброса веса'!C106=0),TRUE)","v":true},{"$f":"IF(A86,0,IF('Мониторинг сброса веса'!B107=0,'Мониторинг сброса веса'!B106+5,'Мониторинг сброса веса'!B107))","v":"00:00:00"},{"$f":"'Мониторинг сброса веса'!C107","v":0}]
[{"$f":"IF(('Мониторинг сброса веса'!C108=0)*('Мониторинг сброса веса'!C107=0),TRUE)","v":true},{"$f":"IF(A87,0,IF('Мониторинг сброса веса'!B108=0,'Мониторинг сброса веса'!B107+5,'Мониторинг сброса веса'!B108))","v":"00:00:00"},{"$f":"'Мониторинг сброса веса'!C108","v":0}]
[{"$f":"IF(('Мониторинг сброса веса'!C109=0)*('Мониторинг сброса веса'!C108=0),TRUE)","v":true},{"$f":"IF(A88,0,IF('Мониторинг сброса веса'!B109=0,'Мониторинг сброса веса'!B108+5,'Мониторинг сброса веса'!B109))","v":"00:00:00"},{"$f":"'Мониторинг сброса веса'!C109","v":0}]
[{"$f":"IF(('Мониторинг сброса веса'!C110=0)*('Мониторинг сброса веса'!C109=0),TRUE)","v":true},{"$f":"IF(A89,0,IF('Мониторинг сброса веса'!B110=0,'Мониторинг сброса веса'!B109+5,'Мониторинг сброса веса'!B110))","v":"00:00:00"},{"$f":"'Мониторинг сброса веса'!C110","v":0}]
[{"$f":"IF(('Мониторинг сброса веса'!C111=0)*('Мониторинг сброса веса'!C110=0),TRUE)","v":true},{"$f":"IF(A90,0,IF('Мониторинг сброса веса'!B111=0,'Мониторинг сброса веса'!B110+5,'Мониторинг сброса веса'!B111))","v":"00:00:00"},{"$f":"'Мониторинг сброса веса'!C111","v":0}]
[{"$f":"IF(('Мониторинг сброса веса'!C112=0)*('Мониторинг сброса веса'!C111=0),TRUE)","v":true},{"$f":"IF(A91,0,IF('Мониторинг сброса веса'!B112=0,'Мониторинг сброса веса'!B111+5,'Мониторинг сброса веса'!B112))","v":"00:00:00"},{"$f":"'Мониторинг сброса веса'!C112","v":0}]
[{"$f":"IF(('Мониторинг сброса веса'!C113=0)*('Мониторинг сброса веса'!C112=0),TRUE)","v":true},{"$f":"IF(A92,0,IF('Мониторинг сброса веса'!B113=0,'Мониторинг сброса веса'!B112+5,'Мониторинг сброса веса'!B113))","v":"00:00:00"},{"$f":"'Мониторинг сброса веса'!C113","v":0}]
[{"$f":"IF(('Мониторинг сброса веса'!C114=0)*('Мониторинг сброса веса'!C113=0),TRUE)","v":true},{"$f":"IF(A93,0,IF('Мониторинг сброса веса'!B114=0,'Мониторинг сброса веса'!B113+5,'Мониторинг сброса веса'!B114))","v":"00:00:00"},{"$f":"'Мониторинг сброса веса'!C114","v":0}]
[{"$f":"IF(('Мониторинг сброса веса'!C115=0)*('Мониторинг сброса веса'!C114=0),TRUE)","v":true},{"$f":"IF(A94,0,IF('Мониторинг сброса веса'!B115=0,'Мониторинг сброса веса'!B114+5,'Мониторинг сброса веса'!B115))","v":"00:00:00"},{"$f":"'Мониторинг сброса веса'!C115","v":0}]
[{"$f":"IF(('Мониторинг сброса веса'!C116=0)*('Мониторинг сброса веса'!C115=0),TRUE)","v":true},{"$f":"IF(A95,0,IF('Мониторинг сброса веса'!B116=0,'Мониторинг сброса веса'!B115+5,'Мониторинг сброса веса'!B116))","v":"00:00:00"},{"$f":"'Мониторинг сброса веса'!C116","v":0}]
[{"$f":"IF(('Мониторинг сброса веса'!C117=0)*('Мониторинг сброса веса'!C116=0),TRUE)","v":true},{"$f":"IF(A96,0,IF('Мониторинг сброса веса'!B117=0,'Мониторинг сброса веса'!B116+5,'Мониторинг сброса веса'!B117))","v":"00:00:00"},{"$f":"'Мониторинг сброса веса'!C117","v":0}]
[{"$f":"IF(('Мониторинг сброса веса'!C118=0)*('Мониторинг сброса веса'!C117=0),TRUE)","v":true},{"$f":"IF(A97,0,IF('Мониторинг сброса веса'!B118=0,'Мониторинг сброса веса'!B117+5,'Мониторинг сброса веса'!B118))","v":"00:00:00"},{"$f":"'Мониторинг сброса веса'!C118","v":0}]
[{"$f":"IF(('Мониторинг сброса веса'!C119=0)*('Мониторинг сброса веса'!C118=0),TRUE)","v":true},{"$f":"IF(A98,0,IF('Мониторинг сброса веса'!B119=0,'Мониторинг сброса веса'!B118+5,'Мониторинг сброса веса'!B119))","v":"00:00:00"},{"$f":"'Мониторинг сброса веса'!C119","v":0}]
[{"$f":"IF(('Мониторинг сброса веса'!C120=0)*('Мониторинг сброса веса'!C119=0),TRUE)","v":true},{"$f":"IF(A99,0,IF('Мониторинг сброса веса'!B120=0,'Мониторинг сброса веса'!B119+5,'Мониторинг сброса веса'!B120))","v":"00:00:00"},{"$f":"'Мониторинг сброса веса'!C120","v":0}]
[{"$f":"IF(('Мониторинг сброса веса'!C121=0)*('Мониторинг сброса веса'!C120=0),TRUE)","v":true},{"$f":"IF(A100,0,IF('Мониторинг сброса веса'!B121=0,'Мониторинг сброса веса'!B120+5,'Мониторинг сброса веса'!B121))","v":"00:00:00"},{"$f":"'Мониторинг сброса веса'!C121","v":0}]
[{"$f":"IF(('Мониторинг сброса веса'!C122=0)*('Мониторинг сброса веса'!C121=0),TRUE)","v":true},{"$f":"IF(A101,0,IF('Мониторинг сброса веса'!B122=0,'Мониторинг сброса веса'!B121+5,'Мониторинг сброса веса'!B122))","v":"00:00:00"},{"$f":"'Мониторинг сброса веса'!C122","v":0}]
[{"$f":"IF(('Мониторинг сброса веса'!C123=0)*('Мониторинг сброса веса'!C122=0),TRUE)","v":true},{"$f":"IF(A102,0,IF('Мониторинг сброса веса'!B123=0,'Мониторинг сброса веса'!B122+5,'Мониторинг сброса веса'!B123))","v":"00:00:00"},{"$f":"'Мониторинг сброса веса'!C123","v":0}]
[{"$f":"IF(('Мониторинг сброса веса'!C124=0)*('Мониторинг сброса веса'!C123=0),TRUE)","v":true},{"$f":"IF(A103,0,IF('Мониторинг сброса веса'!B124=0,'Мониторинг сброса веса'!B123+5,'Мониторинг сброса веса'!B124))","v":"00:00:00"},{"$f":"'Мониторинг сброса веса'!C124","v":0}]
[{"$f":"IF(('Мониторинг сброса веса'!C125=0)*('Мониторинг сброса веса'!C124=0),TRUE)","v":true},{"$f":"IF(A104,0,IF('Мониторинг сброса веса'!B125=0,'Мониторинг сброса веса'!B124+5,'Мониторинг сброса веса'!B125))","v":"00:00:00"},{"$f":"'Мониторинг сброса веса'!C125","v":0}]
[{"$f":"IF(('Мониторинг сброса веса'!C126=0)*('Мониторинг сброса веса'!C125=0),TRUE)","v":true},{"$f":"IF(A105,0,IF('Мониторинг сброса веса'!B126=0,'Мониторинг сброса веса'!B125+5,'Мониторинг сброса веса'!B126))","v":"00:00:00"},{"$f":"'Мониторинг сброса веса'!C126","v":0}]
[{"$f":"IF(('Мониторинг сброса веса'!C127=0)*('Мониторинг сброса веса'!C126=0),TRUE)","v":true},{"$f":"IF(A106,0,IF('Мониторинг сброса веса'!B127=0,'Мониторинг сброса веса'!B126+5,'Мониторинг сброса веса'!B127))","v":"00:00:00"},{"$f":"'Мониторинг сброса веса'!C127","v":0}]
[{"$f":"IF(('Мониторинг сброса веса'!C128=0)*('Мониторинг сброса веса'!C127=0),TRUE)","v":true},{"$f":"IF(A107,0,IF('Мониторинг сброса веса'!B128=0,'Мониторинг сброса веса'!B127+5,'Мониторинг сброса веса'!B128))","v":"00:00:00"},{"$f":"'Мониторинг сброса веса'!C128","v":0}]
[{"$f":"IF(('Мониторинг сброса веса'!C129=0)*('Мониторинг сброса веса'!C128=0),TRUE)","v":true},{"$f":"IF(A108,0,IF('Мониторинг сброса веса'!B129=0,'Мониторинг сброса веса'!B128+5,'Мониторинг сброса веса'!B129))","v":"00:00:00"},{"$f":"'Мониторинг сброса веса'!C129","v":0}]